bitfinex/quotes_SOLUSD_20250626
["timestamp","ask_amount","ask_price","bid_price","bid_amount"]
[1750904544947,5.5243161,145.74,145.71,35.34282356]
[1750904547151,5.5243161,145.74,145.71,6.86282356]
[1750904547330,5.5243161,145.74,145.72,28.48]
[1750904547856,5.5243161,145.74,145.71,6.86282356]
[1750904548151,5.5243161,145.74,145.72,35.34246902]
[1750904553466,5.5243161,145.74,145.72,28.48]
[1750904554475,5.5243161,145.73,145.72,28.48]
[1750904555378,26.0,145.77,145.72,28.48]
[1750904555546,5.5243161,145.74,145.72,28.48]
[1750904558241,5.5243161,145.73,145.72,28.48]
[1750904558447,5.5243161,145.73,145.7,35.34328797]
[1750904559788,5.5243161,145.73,145.7,6.86328797]
[1750904559989,5.5243161,145.71,145.69,0.02]
[1750904560276,5.5243161,145.71,145.69,28.5]
[1750904560657,5.5243161,145.71,145.69,0.02]
[1750904560981,5.5243161,145.7,145.69,0.02]
[1750904562476,26.0,145.74,145.69,0.02]
[1750904562477,5.5243161,145.71,145.69,0.02]
[1750904562684,5.5243161,145.72,145.69,0.02]
[1750904563073,5.5243161,145.73,145.7,28.48]
[1750904566488,27.5712,145.76,145.7,35.34335525]
[1750904566789,5.5243161,145.73,145.7,35.34335525]
[1750904567184,5.5243161,145.74,145.7,35.34335525]
[1750904567983,5.5243161,145.74,145.7,40.86767135]
[1750904568185,5.5243161,145.73,145.7,35.34335525]
[1750904570378,5.5243161,145.74,145.7,35.34335525]
[1750904570991,5.5243161,145.74,145.7,40.86767135]
[1750904571368,5.5243161,145.75,145.7,40.86767135]
[1750904571568,5.5243161,145.74,145.7,35.34335525]
[1750904572687,26.0,145.76,145.71,5.5243161]
[1750904572877,5.5243161,145.75,145.72,28.48]
[1750904573392,5.5243161,145.76,145.72,34.0043161]
[1750904573766,152.0243161,145.77,145.72,34.0043161]
[1750904574264,152.0243161,145.77,145.73,24.17396496]
[1750904574465,152.0243161,145.77,145.74,28.48]
[1750904574681,5.5243161,145.77,145.75,6.86106346]
[1750904575085,5.5243161,145.77,145.74,35.34145377]
[1750904575282,5.5243161,145.76,145.74,35.34145377]
[1750904575494,31.5243161,145.77,145.74,35.34145377]
[1750904577099,5.5243161,145.77,145.74,35.34145377]
[1750904577301,5.5243161,145.78,145.74,35.34145377]
[1750904578082,5.5243161,145.77,145.74,35.34145377]
[1750904580296,31.11518845,145.8,145.74,35.34145377]
[1750904580605,5.5243161,145.75,145.74,28.48]
[1750904581195,5.11518845,145.79,145.74,30.1034]
[1750904581382,0.04,145.81,145.77,6.6434]
[1750904581582,0.04,145.81,145.79,5.5243161]
[1750904582504,0.04,145.81,145.79,6.85918101]
[1750904582814,0.04,145.81,145.79,12.38349711]
[1750904583006,0.04,145.81,145.8,52.79396496]
[1750904583209,0.04,145.81,145.8,54.83224967]
[1750904583410,0.04,145.81,145.8,81.51812072]
[1750904583711,5.5243161,145.83,145.8,28.64]
[1750904584510,0.04,145.84,145.8,28.64]
[1750904584714,5.5243161,145.83,145.8,35.49835351]
[1750904587703,5.5643161,145.84,145.8,35.49835351]
[1750904587888,5.5243161,145.83,145.8,35.49835351]
[1750904588809,5.5243161,145.82,145.8,35.49835351]
[1750904590600,5.5243161,145.83,145.8,35.49835351]
[1750904591204,0.04,145.84,145.8,35.49835351]
[1750904591402,5.5243161,145.83,145.8,35.49835351]
[1750904593122,0.04,145.84,145.8,35.49835351]
[1750904593289,5.5243161,145.83,145.8,35.49835351]
[1750904594918,5.5243161,145.82,145.8,28.64]
[1750904595088,5.5243161,145.82,145.8,35.49869533]
[1750904595293,5.5243161,145.83,145.8,35.49869533]
[1750904596494,5.5243161,145.82,145.8,35.49869533]
[1750904598000,5.5243161,145.81,145.78,35.39922989]
[1750904598192,5.5243161,145.8,145.78,35.39922989]
[1750904599906,5.5243161,145.79,145.73,19.73435955]
[1750904600116,5.5243161,145.77,145.74,35.40153423]
[1750904600512,146.5,145.83,145.74,35.40153423]
[1750904600513,5.5243161,145.78,145.74,35.40153423]
[1750904600708,5.5243161,145.78,145.74,40.92585033]
[1750904600908,5.5243161,145.78,145.74,35.40153423]
[1750904601392,5.5243161,145.77,145.74,35.40153423]
[1750904602430,5.5243161,145.77,145.74,6.86153423]
[1750904602594,5.5243161,145.77,145.74,28.54]
[1750904602795,5.5243161,145.75,145.73,0.02]
[1750904603105,5.5243161,145.74,145.73,0.02]
[1750904603911,5.5243161,145.75,145.73,0.02]
[1750904604625,5.5243161,145.74,145.73,0.02]
[1750904607299,32.61284855,145.79,145.73,0.02]
[1750904607507,5.5243161,145.75,145.73,0.02]
[1750904607726,5.5243161,145.76,145.73,0.02]
[1750904608403,5.5243161,145.76,145.71,40.90717595]
[1750904608404,5.5243161,145.76,145.71,40.42717595]
[1750904612427,5.5243161,145.76,145.73,6.86200507]
[1750904613617,146.5,145.78,145.73,6.86200507]
[1750904613813,5.5243161,145.76,145.73,6.86200507]
[1750904614025,5.5243161,145.77,145.74,28.48]
[1750904615212,26.0,145.79,145.75,6.4439]
[1750904615417,0.04,145.84,145.78,50.17396496]
[1750904615719,0.04,145.84,145.82,26.0]
[1750904617008,0.04,145.84,145.83,26.0]
[1750904618015,5.5643161,145.84,145.83,26.0]
[1750904618806,0.04,145.84,145.83,26.0]
[1750904619007,5.5643161,145.84,145.83,26.0]
[1750904619728,0.04,145.84,145.83,26.0]
[1750904621626,0.04,145.84,145.83,32.85729959]
[1750904621826,0.04,145.84,145.83,38.38161569]
[1750904622026,0.04,145.84,145.83,57.03126455]
[1750904622611,0.04,145.84,145.83,51.50694845]
[1750904622929,0.04,145.84,145.83,57.03126455]
[1750904623125,0.04,145.84,145.83,51.50694845]
[1750904623320,0.04,145.84,145.83,57.03126455]
[1750904624635,0.04,145.84,145.74,7.8659]
[1750904624636,11.0886322,145.84,145.74,7.8659]
[1750904624935,5.5243161,145.79,145.75,41.16537956]
[1750904625137,1.7025,145.84,145.78,26.0]
[1750904625322,5.5243161,145.8,145.77,6.85968041]
[1750904625521,5.5243161,145.79,145.77,6.85968041]
[1750904625722,5.5243161,145.8,145.77,6.85968041]
[1750904625926,5.5243161,145.8,145.79,26.0]
[1750904626742,5.5243161,145.8,145.76,6.86059275]
[1750904626913,7.2268161,145.84,145.77,26.0]
[1750904626914,1.7025,145.84,145.77,26.0]
[1750904627114,5.5243161,145.79,145.78,26.0]
[1750904627515,1.7025,145.84,145.78,26.0]
[1750904627716,5.5243161,145.79,145.78,26.0]
[1750904632342,5.5243161,145.79,145.75,26.0]
[1750904632548,5.5243161,145.77,145.74,35.60153423]
[1750904632734,5.5243161,145.77,145.76,26.0]
[1750904632934,5.5243161,145.77,145.74,35.60153423]
[1750904634348,5.5243161,145.79,145.76,26.0]
[1750904635646,5.5243161,145.78,145.76,26.0]
[1750904636035,5.5243161,145.77,145.76,26.0]
[1750904640953,146.5,145.81,145.76,26.0]
[1750904641139,5.5243161,145.77,145.76,26.0]
[1750904642155,146.5,145.81,145.76,26.0]
[1750904642447,5.5243161,145.77,145.76,26.0]
[1750904649757,5.5243161,145.77,145.76,32.86059275]
[1750904649959,5.5243161,145.79,145.76,32.86059275]
[1750904650259,5.5243161,145.79,145.76,61.54059275]
[1750904654843,146.5,145.81,145.76,61.54059275]
[1750904655055,5.5243161,145.79,145.76,61.54059275]
[1750904656240,5.5243161,145.78,145.76,61.54059275]
[1750904657468,146.5,145.81,145.76,61.54059275]
[1750904657653,5.5243161,145.78,145.76,61.54059275]
[1750904657855,146.5,145.81,145.76,61.54059275]
[1750904658154,5.5243161,145.78,145.76,61.54059275]
[1750904658988,5.5243161,145.77,145.76,61.54059275]
[1750904659770,5.5243161,145.77,145.76,26.0]
[1750904660473,5.5243161,145.77,145.74,28.62]
[1750904660676,5.5243161,145.75,145.73,61.4818924]
[1750904661174,5.5243161,145.75,145.73,35.4818924]
[1750904663188,5.5243161,145.74,145.73,26.0]
[1750904665087,5.5243161,145.74,145.72,35.46242977]
[1750904665288,5.5243161,145.76,145.72,40.98674587]
[1750904665794,5.5243161,145.76,145.72,35.46242977]
[1750904666091,5.5243161,145.78,145.74,5.5243161]
[1750904666258,5.5243161,145.79,145.76,6.86059275]
[1750904666462,5.5243161,145.78,145.75,35.4609278]
[1750904670983,5.12120803,145.8,145.75,35.4609278]
[1750904671183,5.5243161,145.79,145.75,40.9852439]
[1750904671559,10.65559052,145.8,145.75,40.9852439]
[1750904672180,5.5243161,145.79,145.75,35.4609278]
[1750904673579,5.13127442,145.8,145.77,6.86012211]
[1750904673777,5.5243161,145.81,145.78,28.58]
[1750904673975,185.29022558,145.84,145.78,28.58]
[1750904674190,5.5243161,145.81,145.78,28.58]
[1750904674486,5.5243161,145.8,145.78,28.58]
[1750904674667,5.5243161,145.79,145.78,28.58]
[1750904675596,5.5243161,145.8,145.78,28.58]
[1750904677477,10.65617591,145.83,145.78,35.43940955]
[1750904677668,10.65617591,145.83,145.79,5.5243161]
[1750904677988,10.65617591,145.83,145.8,28.56]
[1750904678187,5.5243161,145.83,145.8,28.56]
[1750904678989,5.5243161,145.83,145.8,35.41853834]
[1750904679183,146.54,145.84,145.8,35.41853834]
[1750904679361,5.5243161,145.83,145.8,35.41853834]
[1750904682991,5.5243161,145.83,145.8,28.56]
[1750904683578,5.5243161,145.82,145.8,28.56]
[1750904683791,5.5243161,145.81,145.8,28.56]
[1750904683995,10.68648974,145.84,145.78,28.52]
[1750904684287,5.5243161,145.83,145.79,18.64964886]
[1750904684468,5.5243161,145.83,145.8,28.58]
[1750904685487,5.5243161,145.83,145.8,35.43833858]
[1750904686503,5.5243161,145.82,145.8,28.58]
[1750904686680,5.5243161,145.81,145.8,28.58]
[1750904686880,5.5243161,145.81,145.78,28.58]
[1750904687079,5.5243161,145.79,145.78,28.58]
[1750904689587,5.5243161,145.79,145.77,6.85998897]
[1750904689884,5.5243161,145.79,145.78,28.56]
[1750904690099,5.12217364,145.83,145.78,28.56]
[1750904690308,5.5243161,145.8,145.78,28.56]
[1750904691086,5.12217364,145.83,145.78,28.56]
[1750904691398,5.5243161,145.8,145.78,28.56]
[1750904692193,5.5243161,145.79,145.78,28.56]
[1750904695009,5.5243161,145.79,145.77,28.54]
[1750904697797,5.5243161,145.78,145.77,28.54]
[1750904698002,5.5243161,145.78,145.72,6.86244314]
[1750904698211,5.5243161,145.75,145.73,28.52]
[1750904698417,5.5243161,145.74,145.73,28.52]
[1750904699499,5.5243161,145.74,145.72,35.38244314]
[1750904702414,5.5243161,145.75,145.72,35.38244314]
[1750904703615,5.5243161,145.76,145.72,35.38244314]
[1750904703911,5.5243161,145.76,145.72,40.90675924]
[1750904704706,5.5243161,145.76,145.72,35.38244314]
[1750904705720,5.5243161,145.75,145.72,35.38244314]
[1750904707602,5.5243161,145.76,145.72,35.38244314]
[1750904707808,5.5243161,145.76,145.72,40.90675924]
[1750904708304,5.5243161,145.76,145.72,35.38244314]
[1750904708507,5.5243161,145.76,145.72,40.90675924]
[1750904709300,5.5243161,145.76,145.73,18.64964886]
[1750904709496,146.5,145.8,145.73,18.64964886]
[1750904709497,5.5243161,145.77,145.74,28.52]
[1750904709916,5.5243161,145.77,145.75,6.86106346]
[1750904710329,26.28432314,145.79,145.71,6.86294694]
[1750904710505,5.5243161,145.72,145.71,6.86294694]
[1750904710704,5.5243161,145.73,145.71,35.38294694]
[1750904711028,5.5243161,145.73,145.71,6.86294694]
[1750904711201,5.5243161,145.73,145.72,28.52]
[1750904713608,5.5243161,145.73,145.71,28.52]
[1750904713797,5.5243161,145.72,145.7,35.38330833]
[1750904714225,5.5243161,145.71,145.7,35.38330833]
[1750904714839,5.5243161,145.72,145.7,35.38330833]
[1750904715912,5.5243161,145.73,145.7,35.38330833]
[1750904716734,5.5243161,145.73,145.71,35.38266548]
[1750904717120,146.5,145.78,145.71,40.90698158]
[1750904717308,5.5243161,145.76,145.72,24.17396496]
[1750904717505,5.5243161,145.76,145.73,28.52]
[1750904717728,5.15277623,145.8,145.73,28.52]
[1750904717904,5.5243161,145.77,145.73,28.52]
[1750904719024,5.5243161,145.77,145.74,6.86153423]
[1750904719228,5.5243161,145.77,145.75,28.52]
[1750904720132,5.5243161,145.76,145.75,28.52]
[1750904722806,5.5243161,145.76,145.75,35.38106346]
[1750904723622,5.15277623,145.8,145.75,35.38106346]
[1750904723623,0.04,145.8,145.75,35.38106346]
[1750904723832,5.5243161,145.79,145.75,35.38106346]
[1750904724007,5.5243161,145.79,145.75,40.90537956]
[1750904724406,5.5643161,145.8,145.75,58.05803822]
[1750904725207,5.5643161,145.8,145.76,18.64964886]
[1750904725415,5.5643161,145.8,145.77,28.52]
[1750904725616,5.5643161,145.8,145.78,6.85965152]
[1750904727030,31.11349848,145.83,145.78,6.85965152]
[1750904727229,5.5243161,145.8,145.78,6.85965152]
[1750904729132,5.5243161,145.81,145.78,6.85965152]
[1750904729829,5.11349848,145.83,145.79,28.52]
[1750904730019,5.5243161,145.8,145.79,28.52]
[1750904733215,5.5243161,145.8,145.76,35.36048359]
[1750904733426,5.5243161,145.77,145.76,35.36048359]
[1750904733811,5.5243161,145.77,145.76,28.5]
[1750904734016,5.5243161,145.77,145.75,28.5]
[1750904734212,5.5243161,145.76,145.75,28.5]
[1750904734733,5.11349848,145.8,145.73,6.86200507]
[1750904734936,5.5243161,145.8,145.75,34.0243161]
[1750904735124,5.5243161,145.79,145.76,6.86059275]
[1750904735322,5.5243161,145.79,145.77,28.5]
[1750904735533,146.5,145.81,145.77,28.5]
[1750904735728,5.5243161,145.8,145.77,28.5]
[1750904735934,146.5,145.81,145.77,28.5]
[1750904736133,5.5243161,145.82,145.78,5.5243161]
[1750904736342,5.5243161,145.82,145.79,28.5]
[1750904736640,5.5243161,145.83,145.79,28.5]
[1750904737436,5.5243161,145.83,145.8,6.85871056]
[1750904737825,31.15868989,145.84,145.8,6.85871056]
[1750904738016,5.5243161,145.82,145.8,6.85871056]
[1750904738215,5.5243161,145.83,145.8,6.85871056]
[1750904739035,5.15868989,145.84,145.8,6.85871056]
[1750904739343,5.5643161,145.84,145.8,6.85871056]
[1750904740521,0.04,145.84,145.8,6.85871056]
[1750904740726,0.04,145.84,145.8,12.38302666]
[1750904741841,5.5643161,145.84,145.8,12.38302666]
[1750904742729,5.5643161,145.84,145.8,6.85871056]
[1750904743562,5.5243161,145.83,145.8,6.85871056]
[1750904743736,5.5243161,145.81,145.8,6.85871056]
[1750904744028,5.5243161,145.81,145.79,35.35908281]
[1750904747136,5.5243161,145.81,145.79,28.5]
[1750904747535,5.5243161,145.81,145.79,35.35912718]
[1750904749656,5.5243161,145.8,145.79,28.5]
[1750904750026,5.5243161,145.8,145.76,6.86059275]
[1750904750238,5.5243161,145.78,145.77,28.5]
[1750904751145,5.5243161,145.78,145.75,6.86094783]
[1750904751343,5.5243161,145.76,145.75,28.5]
[1750904751546,5.5243161,145.76,145.75,35.36106346]
[1750904751944,5.5243161,145.77,145.75,35.36106346]
[1750904753350,5.5243161,145.76,145.75,35.36106346]
[1750904754774,5.5243161,145.77,145.75,35.36106346]
[1750904755060,5.5243161,145.76,145.75,35.36106346]
[1750904755236,5.5243161,145.77,145.75,35.36106346]
[1750904757539,5.5243161,145.78,145.75,35.36106346]
[1750904758850,6.68191499,145.81,145.75,35.36106346]
[1750904759366,5.5243161,145.81,145.77,5.5243161]
[1750904759543,5.5243161,145.81,145.78,28.5]
[1750904759747,5.5243161,145.81,145.79,6.85918101]
[1750904759956,5.5243161,145.82,145.8,28.5]
[1750904761760,5.15604245,145.84,145.8,35.35847335]
[1750904761946,5.5643161,145.84,145.8,35.35847335]
[1750904762949,5.5243161,145.83,145.8,35.35847335]
[1750904764559,5.5243161,145.81,145.8,28.5]
[1750904764758,5.5243161,145.81,145.8,35.35871056]
[1750904766087,5.5243161,145.82,145.8,35.35871056]
[1750904772667,5.5243161,145.81,145.8,35.35871056]
[1750904774064,5.5243161,145.81,145.8,28.5]
[1750904774865,5.5243161,145.82,145.8,35.35871056]
[1750904778069,5.5243161,145.81,145.8,28.5]
[1750904778447,5.5243161,145.81,145.79,28.48]
[1750904778645,5.5243161,145.8,145.79,28.48]
[1750904779364,5.5243161,145.81,145.79,35.33900083]
[1750904780563,5.11894318,145.83,145.79,35.33900083]
[1750904780968,5.5243161,145.82,145.79,35.33900083]
[1750904788591,5.5243161,145.81,145.79,35.33900083]
[1750904788768,5.11894318,145.83,145.79,35.33900083]
[1750904788769,5.5243161,145.82,145.79,35.33900083]
[1750904790374,5.5243161,145.83,145.79,40.86331693]
[1750904790557,10.68325928,145.84,145.8,5.5243161]
[1750904790767,10.68325928,145.84,145.81,28.48]
[1750904791272,5.15894318,145.84,145.81,28.48]
[1750904791478,10.68325928,145.84,145.81,28.48]
[1750904792156,5.15894318,145.84,145.81,28.48]
[1750904792351,10.68325928,145.84,145.81,35.3378712]
[1750904792956,5.15894318,145.84,145.81,40.8621873]
[1750904793179,0.04,145.84,145.81,40.8621873]
[1750904793359,0.04,145.84,145.81,35.3378712]
[1750904793559,5.5243161,145.82,145.81,28.48]
[1750904793881,5.5243161,145.82,145.8,6.85860682]
[1750904796476,5.12245077,145.83,145.79,28.48]
[1750904796477,5.5243161,145.81,145.79,28.48]
[1750904796661,5.5243161,145.8,145.79,28.48]
[1750904797561,5.5243161,145.8,145.76,35.34052045]
[1750904797761,5.5243161,145.77,145.76,28.48]
[1750904797966,5.12245077,145.8,145.76,28.48]
[1750904798173,1.6473,145.82,145.76,28.48]
[1750904798174,5.5243161,145.77,145.76,28.48]
[1750904798456,5.12245077,145.8,145.76,28.48]
[1750904798668,5.5243161,145.77,145.76,28.48]
[1750904799585,5.12245077,145.81,145.76,35.34059012]
[1750904799768,5.5243161,145.8,145.77,18.64964886]
[1750904799970,5.5243161,145.8,145.78,28.48]
[1750904800377,5.12245077,145.82,145.78,28.48]
[1750904800683,5.5243161,145.82,145.78,28.48]
[1750904800982,26.04,145.84,145.78,28.48]
[1750904801185,5.5243161,145.82,145.78,28.48]
[1750904801589,5.5243161,145.82,145.79,6.85918101]
[1750904801767,5.5243161,145.82,145.8,28.48]
[1750904802290,5.5243161,145.81,145.8,28.48]
[1750904803288,5.13072189,145.83,145.8,28.48]
[1750904803488,5.5243161,145.81,145.8,28.48]
[1750904804596,5.5243161,145.81,145.78,28.48]
[1750904804890,5.5243161,145.79,145.78,28.48]
[1750904808682,10.65690396,145.79,145.75,56.66998625]
[1750904808882,5.5243161,145.77,145.75,63.53094508]
[1750904811125,5.5243161,145.76,145.75,28.18998625]
[1750904813686,5.5243161,145.76,145.74,35.36149899]
[1750904814199,5.5243161,145.76,145.75,28.48]
[1750904815203,5.12887578,145.79,145.75,28.48]
[1750904815204,5.5243161,145.77,145.75,35.34105108]
[1750904816807,5.5243161,145.76,145.75,28.48]
[1750904818119,5.5243161,145.76,145.74,0.02]
[1750904818282,5.5243161,145.75,145.74,0.02]
[1750904828518,11.16277578,145.79,145.74,0.02]
[1750904828808,5.5243161,145.78,145.74,0.02]
[1750904829019,5.5243161,145.77,145.74,0.02]
[1750904829808,5.5243161,145.77,145.74,6.88153423]
[1750904831020,31.11493068,145.8,145.74,6.88153423]
[1750904831021,5.5243161,145.78,145.75,28.46]
[1750904832603,5.5243161,145.78,145.75,35.3207596]
[1750904833226,5.5243161,145.77,145.75,35.3207596]
[1750904833601,5.5243161,145.78,145.75,35.3207596]
[1750904835223,5.5243161,145.77,145.75,35.3207596]
[1750904835728,7.6301,145.83,145.75,35.3207596]
[1750904835729,0.04,145.84,145.76,24.17396496]
[1750904835930,0.04,145.84,145.78,5.5243161]
[1750904835931,5.5243161,145.82,145.78,5.5243161]
[1750904836111,5.5243161,145.81,145.78,28.52]
[1750904836926,5.5243161,145.8,145.78,28.52]
[1750904837109,5.5243161,145.79,145.76,47.18964886]
[1750904837309,5.5243161,145.79,145.77,6.86012211]
[1750904838220,5.5243161,145.78,145.74,35.42117639]
[1750904838414,5.5243161,145.76,145.74,35.42117639]
[1750904838617,5.5243161,145.77,145.74,35.42117639]
[1750904838833,5.5243161,145.78,145.74,40.94549249]
[1750904842310,5.11596994,145.8,145.74,40.94549249]
[1750904842531,5.5243161,145.78,145.74,40.94549249]
[1750904845716,5.5243161,145.78,145.75,18.64964886]
[1750904845925,5.5243161,145.78,145.76,28.56]
[1750904847617,5.5243161,145.77,145.74,0.02]
[1750904847833,5.5243161,145.75,145.74,0.02]
[1750904848030,5.5243161,145.75,145.74,6.88151414]
[1750904861758,5.5243161,145.75,145.74,0.02]
[1750904861964,10.65415166,145.75,145.74,0.02]
[1750904862129,5.5243161,145.75,145.74,0.02]
[1750904862827,10.65415166,145.75,145.74,0.02]
[1750904863030,5.5243161,145.75,145.74,0.02]
[1750904863749,10.65415166,145.75,145.74,0.02]
[1750904864640,5.5243161,145.75,145.74,0.02]
[1750904865142,10.65415166,145.75,145.74,0.02]
[1750904865334,5.5243161,145.75,145.74,0.02]
[1750904865754,10.65415166,145.75,145.74,0.02]
[1750904866050,5.5243161,145.75,145.74,0.02]
[1750904866249,10.65415166,145.75,145.74,0.02]
[1750904866455,5.5243161,145.75,145.74,0.02]
[1750904866655,10.65415166,145.75,145.74,0.02]
[1750904866831,5.5243161,145.75,145.74,0.02]
[1750904867033,10.65415166,145.75,145.74,0.02]
[1750904868153,5.5243161,145.75,145.74,0.02]
[1750904875367,5.12983556,145.76,145.74,0.02]
[1750904875566,5.5243161,145.75,145.74,0.02]
[1750904881973,10.64808621,145.75,145.74,0.02]
[1750904882172,10.64808621,145.75,145.72,0.02]
[1750904882173,0.28432314,145.73,145.72,0.02]
[1750904882472,26.0,145.7,145.69,0.02]
[1750904882664,31.5243161,145.7,145.69,0.02]
[1750904883062,36.64808621,145.7,145.69,0.02]
[1750904883366,31.5243161,145.7,145.69,0.02]
[1750904883570,36.64808621,145.7,145.69,0.02]
[1750904883969,36.64808621,145.7,145.66,0.02]
[1750904883970,49.32014343,145.7,145.66,0.02]
[1750904884171,31.5243161,145.67,145.66,0.02]
[1750904884377,36.64359742,145.67,145.66,0.02]
[1750904885464,36.92792056,145.67,145.66,0.02]
[1750904886579,43.79275202,145.67,145.66,0.02]
[1750904888773,36.92792056,145.67,145.66,0.02]
[1750904889367,36.9099015,145.67,145.66,0.02]
[1750904890282,31.80863924,145.67,145.66,0.02]
[1750904892286,38.6734707,145.67,145.66,0.02]
[1750904893719,38.6734707,145.67,145.59,7.9579]
[1750904893720,38.6734707,145.67,145.59,7.0579]
[1750904893890,5.5243161,145.61,145.59,7.0579]
[1750904895180,5.5243161,145.61,145.59,13.92638529]
[1750904897274,5.5243161,145.62,145.59,13.92638529]
[1750904898772,5.5243161,145.61,145.58,6.86907542]
[1750904899679,146.5,145.66,145.59,24.31612653]
[1750904899877,5.5243161,145.64,145.6,5.5243161]
[1750904900281,5.5243161,145.64,145.59,24.31612653]
[1750904900680,5.5243161,145.64,145.6,5.5243161]
[1750904900893,5.5243161,145.64,145.6,6.86813186]
[1750904901091,146.5,145.66,145.6,12.39244796]
[1750904901383,5.5243161,145.64,145.6,12.39244796]
[1750904901983,5.5243161,145.64,145.6,6.86813186]
[1750904902296,5.5243161,145.65,145.61,24.17396496]
[1750904902592,5.5243161,145.67,145.63,24.17396496]
[1750904903770,5.5243161,145.67,145.64,6.86624553]
[1750904903974,5.5243161,145.68,145.64,12.39056163]
[1750904905098,5.5243161,145.67,145.64,6.86624553]
[1750904905490,6.28,145.69,145.64,6.86624553]
[1750904905689,5.5243161,145.67,145.64,6.86624553]
[1750904906090,5.5243161,145.68,145.64,12.39056163]
[1750904906396,5.5243161,145.68,145.64,6.86624553]
[1750904909788,5.5243161,145.67,145.64,6.86624553]
[1750904915705,6.28,145.69,145.64,6.86624553]
[1750904915908,5.5243161,145.68,145.64,6.86624553]
[1750904916407,5.5243161,145.67,145.64,6.86624553]
[1750904917497,11.8043161,145.69,145.64,12.39056163]
[1750904917812,5.5243161,145.69,145.64,12.39056163]
[1750904917985,5.5243161,145.68,145.64,12.39056163]
[1750904918307,5.5243161,145.65,145.59,28.46]
[1750904918500,5.5243161,145.62,145.59,28.46]
[1750904918680,26.0,145.67,145.6,18.64964886]
[1750904918886,5.5243161,145.64,145.6,24.17396496]
[1750904919595,5.5243161,145.64,145.61,6.86766018]
[1750904919801,5.5243161,145.65,145.61,6.86766018]
[1750904919980,5.5243161,145.65,145.61,12.39197628]
[1750904921188,5.5243161,145.65,145.61,6.86766018]
[1750904921387,5.5243161,145.64,145.61,6.86766018]
[1750904921814,5.5243161,145.63,145.61,6.86766018]
[1750904922188,5.5243161,145.64,145.61,6.86766018]
[1750904922489,5.5243161,145.63,145.61,6.86766018]
[1750904923697,5.5243161,145.64,145.61,6.86766018]
[1750904924497,5.5243161,145.65,145.62,35.32711041]
[1750904924703,26.0,145.67,145.62,35.32711041]
[1750904924704,5.5243161,145.64,145.62,35.32711041]
[1750904925596,5.5243161,145.65,145.62,35.32711041]
[1750904929695,26.0,145.65,145.57,6.86954729]
[1750904929898,5.5243161,145.62,145.57,12.39386339]
[1750904930101,5.5243161,145.62,145.58,18.64964886]
[1750904930301,26.0,145.66,145.6,24.17396496]
[1750904930517,5.5243161,145.65,145.6,24.17396496]
[1750904930716,5.5243161,145.65,145.61,6.86766018]
[1750904930917,5.5243161,145.65,145.62,28.46]
[1750904933218,5.5243161,145.65,145.62,35.32707719]
[1750904934309,5.5243161,145.64,145.62,28.46]
[1750904935525,5.5243161,145.64,145.62,35.3271885]
[1750904938929,5.5243161,145.63,145.62,28.46]
[1750904940324,5.5243161,145.63,145.6,35.32803549]
[1750904940524,5.5243161,145.62,145.6,35.32803549]
[1750904940715,5.5243161,145.61,145.58,6.86862093]
[1750904940915,5.5243161,145.6,145.58,35.32862093]
[1750904941728,5.5243161,145.6,145.57,6.86953071]
[1750904942031,5.5243161,145.59,145.57,6.86953071]
[1750904942209,5.5243161,145.6,145.57,6.86953071]
[1750904942633,5.5243161,145.59,145.57,6.86953071]
[1750904942807,5.1268653,145.64,145.57,6.86953071]
[1750904943127,5.5243161,145.61,145.58,47.10964886]
[1750904943337,5.5243161,145.6,145.58,47.10964886]
[1750904943509,5.5243161,145.6,145.58,28.46]
[1750904944011,5.5243161,145.6,145.58,35.32901986]
[1750904945931,5.1268653,145.64,145.58,35.32901986]
[1750904946114,5.5243161,145.61,145.58,28.46]
[1750904947815,5.5243161,145.61,145.58,35.3286101]
[1750904948933,5.5243161,145.62,145.58,35.3286101]
[1750904949644,5.5243161,145.61,145.58,35.3286101]
[1750904950719,5.5243161,145.6,145.58,35.3286101]
[1750904951038,5.1268653,145.64,145.58,35.3286101]
[1750904951220,5.5243161,145.6,145.58,35.3286101]
[1750904953541,5.5243161,145.6,145.58,6.8686101]
[1750904954128,5.5243161,145.59,145.57,35.30954231]
[1750904954447,11.9931588,145.64,145.57,28.44]